bitfinex/quotes_ETHUSD_20250526
["timestamp","ask_amount","ask_price","bid_price","bid_amount"]
[1748269951114,0.78480615,2548.4,2548.0,11.92463982]
[1748269951318,0.78479066,2548.5,2548.0,11.92463982]
[1748269951506,0.78479066,2548.5,2548.0,13.65365918]
[1748269951875,0.78475678,2548.6,2548.0,13.65365918]
[1748269951876,0.7848075,2548.4,2548.0,13.65365918]
[1748269952276,0.78479129,2548.5,2548.0,13.65365918]
[1748269952725,4.7226,2548.8,2548.4,3.92397077]
[1748269952928,4.7226,2548.8,2548.3,17.59454648]
[1748269953097,0.88465362,2548.9,2548.4,10.22707852]
[1748269953292,0.78470145,2548.8,2548.4,2.22707852]
[1748269953491,0.78470145,2548.8,2548.2,4.67619916]
[1748269953709,0.78470145,2548.8,2548.4,3.92402699]
[1748269953890,0.78472117,2548.7,2548.4,8.0]
[1748269954223,0.78472117,2548.7,2548.1,12.39268231]
[1748269954224,0.78482004,2548.4,2548.1,0.46824271]
[1748269954525,0.8077,2548.5,2548.1,0.46824271]
[1748269954737,0.78481967,2548.4,2548.1,0.46824271]
[1748269955080,0.78483838,2548.3,2548.1,0.46824271]
[1748269955319,0.78486774,2548.2,2548.1,0.46824271]
[1748269955787,0.78486774,2548.2,2547.8,0.66512011]
[1748269956021,0.78486774,2548.2,2547.9,0.45901772]
[1748269956327,0.78491943,2548.1,2547.8,8.46824271]
[1748269956488,1.54794504,2548.0,2547.8,0.46824271]
[1748269957023,1.54794504,2548.0,2547.7,0.46824271]
[1748269957327,0.763,2548.0,2547.7,4.39333644]
[1748269957525,0.763,2548.0,2547.7,0.46824271]
[1748269957827,0.763,2548.0,2547.7,2.1818576]
[1748269958126,0.78488378,2548.2,2547.7,5.63870661]
[1748269959339,0.78166245,2548.2,2547.7,5.63870661]
[1748269960447,0.78489957,2548.1,2547.7,5.63870661]
[1748269960600,4.685,2548.3,2547.7,1.71361489]
[1748269960802,0.78500467,2547.8,2547.6,8.46824271]
[1748269961009,0.78500467,2547.8,2547.6,0.46824271]
[1748269961722,0.78500467,2547.8,2547.5,8.46824271]
[1748269962070,0.78502674,2547.7,2547.5,0.46824271]
[1748269962207,1.58906831,2547.9,2547.5,0.46824271]
[1748269962408,0.78500724,2547.8,2547.5,0.46824271]
[1748269962746,0.78502957,2547.7,2547.3,4.39389652]
[1748269962964,0.78511423,2547.4,2547.3,0.46824271]
[1748269963325,1.61201423,2547.4,2547.3,0.46824271]
[1748269964014,0.78524763,2547.0,2546.8,0.46824271]
[1748269964405,0.78526836,2546.9,2546.8,0.46824271]
[1748269964612,0.78523753,2547.0,2546.8,0.46824271]
[1748269964842,0.78526836,2546.9,2546.8,0.46824271]
[1748269965042,1.61220588,2546.8,2546.5,0.46824271]
[1748269965251,0.78534907,2546.7,2546.5,0.46824271]
[1748269965553,5.77401636,2546.6,2546.5,0.46824271]
[1748269965891,15.36856284,2546.6,2546.5,0.46824271]
[1748269966034,23.36856284,2546.6,2546.5,0.3489414]
[1748269966565,1.61232255,2546.4,2546.3,0.62408291]
[1748269966709,1.61238425,2546.2,2546.1,0.1]
[1748269967041,1.93071067,2546.2,2546.1,0.1]
[1748269967950,5.85371067,2546.2,2546.1,0.1]
[1748269970764,0.78975549,2546.6,2546.1,0.1]
[1748269970765,1.94257418,2547.5,2546.1,9.69454648]
[1748269971064,1.94257418,2547.5,2546.6,0.7968]
[1748269971369,0.78537838,2546.6,2546.3,0.7968]
[1748269971662,0.78534968,2546.7,2546.3,0.7968]
[1748269971864,0.78534968,2546.7,2546.3,8.7968]
[1748269972027,0.78517943,2547.2,2546.5,13.52135798]
[1748269972226,1.59104731,2547.3,2546.7,8.0]
[1748269972437,1.59104731,2547.3,2546.8,3.9263986]
[1748269972867,0.78512044,2547.4,2546.9,3.92633598]
[1748269973161,7.45753041,2547.6,2546.9,13.52080907]
[1748269973465,0.78513283,2547.4,2546.9,9.59454648]
[1748269973663,1.53084729,2547.5,2546.9,9.59454648]
[1748269973865,1.53084241,2547.5,2547.0,3.92618364]
[1748269974362,0.74575304,2547.5,2546.9,14.31765572]
[1748269974540,1.53084889,2547.5,2546.9,14.31765572]
[1748269974739,0.78511523,2547.4,2546.9,14.31763272]
[1748269975327,0.78508949,2547.5,2547.0,3.92611419]
[1748269976056,0.78511886,2547.4,2546.9,15.03188133]
[1748269976232,0.78513911,2547.4,2546.9,11.1056084]
[1748269976432,0.78513911,2547.4,2546.9,5.43738603]
[1748269977428,0.7850932,2547.5,2547.0,3.92618514]
[1748269978040,0.7850932,2547.5,2546.9,5.43733367]
[1748269978367,0.78516191,2547.3,2546.9,1.51106192]
[1748269978756,0.78513132,2547.4,2546.9,5.43739624]
[1748269979568,0.78513132,2547.4,2546.9,1.51106192]
[1748269979771,0.78514902,2547.3,2546.9,1.51106192]
[1748269979977,0.7851311,2547.4,2546.9,5.43738492]
[1748269980183,0.78516344,2547.3,2546.9,0.7968]
[1748269980480,0.78516344,2547.3,2546.6,17.59454648]
[1748269980481,0.78524205,2547.0,2546.6,18.37554648]
[1748269980678,0.8059,2547.6,2546.4,1.27242049]
[1748269980679,0.78533476,2546.7,2546.4,1.27242049]
[1748269980971,0.78533476,2546.7,2546.3,8.781]
[1748269981154,0.78539604,2546.5,2546.3,8.0]
[1748269981329,0.7953,2546.7,2546.1,0.1]
[1748269981538,0.78548425,2546.2,2546.1,0.1]
[1748269983178,1.58658425,2546.2,2546.1,0.1]
[1748269983477,1.8237881,2546.2,2546.1,0.1]
[1748269984563,1.0226881,2546.2,2546.1,0.1]
[1748269984760,9.8237881,2546.2,2546.1,0.1]
[1748269986490,10.3737881,2546.2,2546.1,0.1]
[1748269986700,0.78579286,2545.2,2545.1,0.1]
[1748269990059,0.78577548,2545.3,2545.1,0.1]
[1748269990368,0.78574783,2545.4,2545.1,0.05]
[1748269990688,0.81,2546.0,2545.1,10.42584648]
[1748269990930,0.8098,2546.8,2545.8,9.59454648]
[1748269991185,0.8098,2546.8,2546.3,3.92715134]
[1748269991369,0.8098,2546.8,2546.1,9.59454648]
[1748269991370,0.78533099,2546.7,2546.2,3.92732947]
[1748269991762,0.8098,2546.8,2546.1,9.59454648]
[1748269991991,0.78533003,2546.7,2545.9,8.0]
[1748269992174,0.78533003,2546.7,2545.7,0.7968]
[1748269992175,0.78556039,2546.0,2545.7,0.7968]
[1748269992365,0.78551246,2546.2,2545.6,3.92826281]
[1748269992685,0.78552946,2546.1,2545.6,13.52280929]
[1748269993889,0.8181,2546.0,2545.3,9.59454648]
[1748269994184,1.60365551,2546.0,2545.5,11.9284674]
[1748269994587,0.78559394,2545.9,2545.4,12.88810734]
[1748269995581,0.78556091,2546.0,2545.5,3.92849442]
[1748269995967,0.78559129,2545.9,2545.4,11.92857173]
[1748269996169,0.78561217,2545.8,2545.4,8.0]
[1748269996366,0.7855768,2545.9,2545.1,0.05]
[1748269996677,0.7857796,2545.3,2545.1,0.05]
[1748269996877,0.78570731,2545.5,2545.1,0.05]
[1748269996878,3.926,2545.5,2545.1,0.05]
[1748269997093,3.926,2545.5,2545.1,3.97904875]
[1748269997296,3.926,2545.5,2545.1,0.05]
[1748269997498,3.926,2545.5,2545.1,3.97905088]
[1748269997901,3.926,2545.5,2545.2,3.92895044]
[1748269998263,4.71170225,2545.5,2545.1,0.05]
[1748269999185,4.55607512,2545.5,2545.1,0.05]
[1748269999392,0.78579286,2545.2,2545.1,0.05]
[1748269999563,0.78577586,2545.3,2545.1,0.05]
[1748270000400,0.78579286,2545.2,2545.1,0.05]
[1748270001097,0.8034,2545.7,2545.1,0.05]
[1748270001265,3.926,2545.4,2545.1,0.05]
[1748270001461,0.78570381,2545.5,2545.1,0.05]
[1748270001680,0.78568111,2545.6,2545.1,3.97908082]
[1748270001880,0.78570204,2545.5,2545.1,3.97908082]
[1748270002080,0.78570204,2545.5,2545.1,0.05]
[1748270002400,4.71168338,2545.6,2545.1,3.97911659]
[1748270002570,0.78571081,2545.5,2545.1,0.05]
[1748270003287,0.78571081,2545.5,2545.1,3.9791125]
[1748270003498,0.78571081,2545.5,2545.1,0.05]
[1748270003701,0.78577597,2545.3,2545.1,0.05]
[1748270004220,0.78579286,2545.2,2545.1,0.05]
[1748270004885,1.56249286,2545.2,2545.1,0.05]
[1748270005778,10.11249286,2545.2,2545.1,0.05]
[1748270006088,0.7767,2544.4,2544.3,0.005]
[1748270006287,1.56261657,2544.8,2544.3,3.93527618]
[1748270006613,0.78594387,2544.8,2544.3,0.005]
[1748270006814,0.78603993,2544.4,2544.3,0.005]
[1748270007012,3.927,2545.0,2544.3,0.005]
[1748270007515,0.78598192,2544.6,2544.3,0.005]
[1748270007677,0.78603332,2544.5,2544.3,0.005]
[1748270007874,0.78603993,2544.4,2544.3,0.005]
[1748270008108,3.927,2545.0,2544.3,0.005]
[1748270008415,1.56273993,2544.4,2544.3,0.005]
[1748270008621,5.48973993,2544.4,2544.3,0.005]
[1748270010699,14.03973993,2544.4,2544.3,0.005]
[1748270011100,1.56273993,2544.4,2544.3,0.005]
[1748270011293,9.93473993,2544.4,2544.3,0.005]
[1748270011509,2.63481535,2544.4,2544.3,0.005]
[1748270011818,9.93473993,2544.4,2544.3,0.005]
[1748270013283,10.48473993,2544.4,2544.3,0.005]
[1748270013885,9.93573993,2544.4,2544.3,0.005]
[1748270014086,1.56273993,2544.4,2544.3,0.005]
[1748270014407,9.93573993,2544.4,2544.3,0.005]
[1748270014603,11.80791535,2544.4,2544.3,0.005]
[1748270015496,12.35791535,2544.4,2544.3,0.005]
[1748270015698,20.35791535,2544.4,2544.3,0.005]
[1748270016887,1.58530172,2544.2,2544.1,0.1]
[1748270017501,5.51430172,2544.2,2544.1,0.1]
[1748270017903,1.58530172,2544.2,2544.1,0.1]
[1748270018145,0.78610172,2544.2,2544.1,0.1]
[1748270019528,1.33621958,2544.2,2544.1,0.1]
[1748270020214,0.78610172,2544.2,2544.1,0.1]
[1748270020923,0.78610172,2544.2,2544.1,0.05]
[1748270021950,4.71510172,2544.2,2544.1,0.05]
[1748270023753,0.78610172,2544.2,2544.1,0.05]
[1748270023956,0.7637,2544.8,2544.1,0.05]
[1748270024251,0.78602553,2544.5,2544.1,0.51474207]
[1748270024453,0.78602602,2544.5,2544.1,0.51474207]
[1748270024655,3.929,2544.6,2544.1,0.51474207]
[1748270024816,0.78610172,2544.2,2544.1,0.05]
[1748270027257,7.84,2544.7,2544.1,0.05]
[1748270027438,0.78607457,2544.3,2544.1,0.05]
[1748270027830,4.71507457,2544.3,2544.1,0.05]
[1748270028147,4.71508778,2544.3,2544.1,0.05]
[1748270028463,3.929,2544.3,2544.1,0.05]
[1748270028977,4.71508198,2544.3,2544.1,0.05]
[1748270029143,4.71509732,2544.3,2544.1,0.05]
[1748270029540,0.78610172,2544.2,2544.1,0.05]
[1748270029798,3.929,2544.3,2544.1,0.05]
[1748270029978,0.78610172,2544.2,2544.1,0.05]
[1748270030874,4.71508881,2544.3,2544.1,0.05]
[1748270031079,3.929,2544.3,2544.1,0.05]
[1748270031479,4.71507389,2544.3,2544.1,0.05]
[1748270031680,0.78610172,2544.2,2544.1,0.05]
[1748270031976,0.78608732,2544.3,2544.1,0.05]
[1748270032196,3.929,2544.2,2544.1,0.05]
[1748270032395,4.71510172,2544.2,2544.1,0.05]
[1748270034273,0.78594726,2544.7,2544.1,0.8123]
[1748270034603,0.78607191,2544.3,2544.1,0.8123]
[1748270034820,0.78607082,2544.3,2544.1,0.8123]
[1748270035161,0.78605287,2544.4,2544.1,0.8123]
[1748270035410,3.929,2544.4,2544.1,0.8123]
[1748270036002,4.71504061,2544.4,2544.1,0.8123]
[1748270036507,3.929,2544.5,2544.1,4.74290546]
[1748270036712,4.71502632,2544.5,2544.1,0.8123]
[1748270036995,0.78602543,2544.5,2544.1,8.8123]
[1748270037197,4.71502543,2544.5,2544.1,8.8123]
[1748270037696,0.78604096,2544.4,2544.1,8.8123]
[1748270037895,4.71502581,2544.5,2544.1,12.74294013]
[1748270038203,4.71503076,2544.5,2544.1,20.22784165]
[1748270038496,3.929,2544.5,2544.1,24.15844005]
[1748270039377,0.78597068,2544.7,2544.1,20.22784165]
[1748270039577,4.71498266,2544.6,2544.2,3.93044096]
[1748270039785,4.71498266,2544.6,2544.1,20.22784165]
[1748270040160,4.71498266,2544.6,2544.1,24.15843687]
[1748270040603,3.929,2544.6,2544.2,3.9304917]
[1748270040806,3.929,2544.6,2544.2,6.44431264]
[1748270040960,3.928,2544.7,2544.4,3.93019587]
[1748270041166,3.928,2544.7,2544.2,2.47451798]
[1748270041401,3.928,2544.7,2544.2,10.5138191]
[1748270041563,0.78587403,2545.0,2544.4,3.93011524]
[1748270041764,0.78595342,2544.7,2544.3,3.93028806]
[1748270042706,0.78593493,2544.8,2544.3,3.93028806]
[1748270043698,0.78593493,2544.8,2544.4,3.93019243]
[1748270043900,0.78590128,2544.9,2544.6,0.794]
[1748270044202,0.78592916,2544.8,2544.6,0.794]
[1748270044412,0.78594726,2544.7,2544.6,0.794]
[1748270044708,0.78592916,2544.8,2544.4,0.794]
[1748270044709,0.78591637,2544.8,2544.4,0.794]
[1748270044916,0.78610172,2544.2,2544.1,1.30244878]
[1748270045270,0.78608353,2544.3,2544.1,0.51754878]
[1748270045466,3.928,2544.5,2544.1,0.05]
[1748270045714,0.78605547,2544.4,2544.1,0.05]
[1748270045880,3.928,2544.5,2544.1,8.05]
[1748270046209,4.71402863,2544.5,2544.1,0.05]
[1748270046405,3.928,2544.5,2544.1,0.05]
[1748270046613,0.78599505,2544.6,2544.1,6.25557242]
[1748270046826,3.928,2544.5,2544.2,0.7849]
[1748270047811,3.928,2544.5,2544.3,3.93033279]
[1748270048209,0.7886,2544.9,2544.3,3.93031389]
[1748270048415,3.928,2544.8,2544.2,10.4196561]
[1748270048593,3.928,2544.8,2544.4,3.93012467]
[1748270048774,3.928,2544.8,2544.5,3.92999305]
[1748270048976,3.928,2544.8,2544.6,3.92980774]
[1748270049327,3.928,2545.0,2544.6,3.92982813]
[1748270049609,4.71386699,2545.0,2544.5,3.92995267]
[1748270050186,0.78588639,2544.9,2544.5,3.92995267]
[1748270050382,0.8172,2545.2,2544.4,3.93016962]
[1748270050587,0.78590963,2544.9,2544.4,3.93016962]
[1748270050775,1.60300154,2545.2,2544.5,3.93004519]
[1748270051138,0.78574703,2545.4,2544.9,3.92931743]
[1748270051413,3.928,2545.4,2544.9,8.0]
[1748270051729,3.928,2545.4,2544.9,11.92935249]
[1748270051870,3.928,2545.4,2545.0,3.92925613]
[1748270052076,4.71374834,2545.4,2544.9,11.92937267]
[1748270052389,0.7857645,2545.3,2544.9,11.92937267]
[1748270052599,0.78572259,2545.5,2545.0,3.92922033]
[1748270052814,0.78577141,2545.3,2544.9,9.74968771]
[1748270052998,0.78579488,2545.2,2544.9,9.74968771]
[1748270053198,0.78577897,2545.3,2544.9,9.74968771]
[1748270053415,0.78581702,2545.2,2544.7,3.92971178]
[1748270053810,0.78582853,2545.1,2544.7,3.92971178]
[1748270054019,0.78580746,2545.2,2544.7,3.92964554]
[1748270054235,0.78584506,2545.1,2544.6,13.16399922]
[1748270054395,0.78584506,2545.1,2544.6,13.1639735]
[1748270054742,0.78580351,2545.2,2544.7,3.92972138]
[1748270055734,0.78582806,2545.1,2544.6,15.71188276]
[1748270056244,0.78585613,2545.0,2544.6,15.71188276]
[1748270056465,0.78585613,2545.0,2544.6,11.78211865]
[1748270056620,0.8147,2545.1,2544.5,0.46754878]
[1748270056821,0.78597814,2544.6,2544.5,0.46754878]
[1748270058020,0.78600981,2544.5,2544.2,0.7587]
[1748270058219,0.78599207,2544.6,2544.2,0.7587]
[1748270058715,0.78592172,2544.8,2544.2,0.7587]
[1748270058915,3.928,2544.7,2544.4,3.93019865]
[1748270059119,3.928,2544.7,2544.3,9.6347561]
[1748270059319,4.71391891,2544.8,2544.4,3.93012691]
[1748270059627,4.71391891,2544.8,2544.3,13.56503476]
[1748270059829,0.8147,2545.1,2544.5,3.92993324]
[1748270060034,4.71385634,2545.0,2544.5,3.92993324]
[1748270060227,4.71385634,2545.0,2544.5,5.67940772]
[1748270061760,3.928,2545.0,2544.5,9.74947448]
[1748270062059,0.7627,2545.4,2544.7,0.7795]
[1748270062255,0.78580844,2545.2,2544.7,12.70913156]
[1748270062417,0.78580844,2545.2,2544.8,1.6447024]
[1748270063014,3.928,2545.2,2544.4,8.46754878]
[1748270063354,3.928,2545.2,2544.3,0.7795]
[1748270063355,0.78584679,2545.1,2544.7,8.0]
[1748270063560,0.78587004,2545.0,2544.6,8.0]
[1748270063855,0.78587004,2545.0,2544.6,11.92988877]
[1748270064057,0.7627,2545.4,2544.7,3.92970731]
[1748270064225,0.78587164,2545.0,2544.7,1.63271539]
[1748270064425,3.928,2545.1,2544.7,1.63271539]
[1748270064633,0.78597814,2544.6,2544.5,0.46754878]
[1748270064832,5.47667814,2544.6,2544.5,0.46754878]
[1748270065565,0.78601526,2544.5,2543.9,0.66666667]
[1748270065853,4.6907,2544.6,2543.9,0.66666667]
[1748270065854,0.78610172,2544.2,2543.9,0.66666667]
[1748270066058,4.6907,2544.6,2543.9,8.66666667]
[1748270066216,0.78603993,2544.4,2543.9,8.66666667]
[1748270066417,5.47667897,2544.6,2543.9,0.66666667]
[1748270066717,0.78610172,2544.2,2543.9,0.66666667]
[1748270067157,0.78605106,2544.4,2543.9,8.66666667]
[1748270067335,0.78609047,2544.3,2543.9,8.66666667]
[1748270067540,0.78610172,2544.2,2543.9,0.66666667]
[1748270068624,0.7627,2544.6,2544.1,3.98057556]
[1748270068841,0.78601245,2544.5,2544.1,2.98007609]
[1748270069036,0.78601245,2544.5,2544.1,6.91073719]
[1748270069553,5.47669208,2544.6,2544.1,6.91073719]
[1748270069774,2.72257418,2545.3,2544.3,17.6347561]
[1748270069939,3.928,2545.1,2544.6,9.6347561]
[1748270070263,0.7859347,2544.8,2544.5,8.0]
[1748270070465,0.7859347,2544.8,2544.4,11.93019051]
[1748270071069,0.78590312,2544.9,2544.4,11.93019051]
[1748270071364,0.78590312,2544.9,2544.5,1.28959666]
[1748270071365,3.928,2544.9,2544.5,1.28959666]
[1748270071575,4.71390483,2544.9,2544.5,1.28959666]
[1748270072173,0.78592208,2544.8,2544.5,1.28959666]
[1748270072353,4.71390135,2544.9,2544.5,1.28959666]
[1748270073248,0.78,2545.3,2544.5,5.21955014]
[1748270073468,0.78583034,2545.1,2544.7,11.92973097]
[1748270073834,3.928,2545.0,2544.7,11.92973097]
[1748270074030,4.71385557,2545.0,2544.7,8.0]
[1748270074385,3.928,2545.0,2544.5,1.28959666]
[1748270074738,0.78589,2544.9,2544.4,8.7655]
[1748270074937,0.78593128,2544.8,2544.4,8.7655]
[1748270075139,3.928,2545.0,2544.4,8.7655]
[1748270075462,0.78589472,2544.9,2544.5,3.92996198]
[1748270077250,3.928,2544.9,2544.6,3.92988175]
[1748270077571,3.928,2544.9,2544.7,1.35646379]
[1748270078358,0.78586021,2545.0,2544.7,1.35646379]
[1748270078558,0.78,2545.3,2544.7,5.28618657]
[1748270078559,1.56577599,2545.3,2544.7,5.28618657]
[1748270078750,4.71381972,2545.2,2544.7,5.28618657]
[1748270079070,4.71381103,2545.2,2544.7,5.28618657]
[1748270079377,0.7858294,2545.1,2544.7,1.35646379]
[1748270079574,4.71379469,2545.2,2544.8,5.25813425]
[1748270079877,0.78579469,2545.2,2544.8,9.32862636]
[1748270080171,0.78579469,2545.2,2544.9,0.8121]
[1748270080476,0.809,2545.5,2544.9,4.74151429]
[1748270080676,3.928,2545.3,2544.9,4.74151429]
[1748270080874,0.78578042,2545.3,2545.0,2.37048967]
[1748270081065,4.71373845,2545.4,2544.9,12.74152411]
[1748270081776,0.78581314,2545.2,2544.8,1.32862636]
[1748270081978,0.809,2545.5,2545.0,11.92923917]
[1748270082137,3.928,2545.5,2545.2,8.0]
[1748270082337,3.928,2545.5,2545.2,17.6347561]
[1748270082543,0.78573413,2545.4,2545.2,20.2652647]
[1748270082742,3.928,2545.5,2545.1,0.8121]
[1748270082743,0.78579286,2545.2,2545.1,0.8121]
[1748270082940,0.809,2545.4,2544.5,0.8121]
[1748270083174,0.78576199,2545.3,2544.3,10.4468561]
[1748270083341,0.78576199,2545.3,2544.4,8.0]
[1748270083342,0.785995,2544.6,2544.4,8.0]
[1748270083885,0.78595954,2544.7,2544.4,8.0]
[1748270084045,0.78597957,2544.6,2544.4,8.0]
[1748270084387,1.59493113,2544.8,2544.4,8.0]
[1748270084555,0.78595443,2544.7,2544.4,8.0]
[1748270084761,0.809,2544.8,2544.4,8.0]
[1748270084958,0.809,2544.8,2544.1,0.05]
[1748270084959,0.78603474,2544.5,2544.1,8.8621]
[1748270085160,0.78605338,2544.4,2544.1,8.8621]
[1748270085389,0.809,2544.8,2544.1,0.05]
[1748270085686,0.78608837,2544.3,2544.1,8.05]
[1748270086215,4.71402779,2544.5,2544.1,8.05]
[1748270086216,4.71402369,2544.5,2544.1,8.05]
[1748270086352,3.928,2544.5,2544.1,11.98065567]
[1748270086685,0.78604778,2544.4,2544.1,8.05]
[1748270086875,4.7140227,2544.5,2544.1,8.05]
[1748270088085,0.78604214,2544.4,2544.1,8.04677866]
[1748270088290,0.78610172,2544.2,2544.1,0.04677866]
[1748270088490,1.59080172,2544.2,2544.1,0.04677866]
[1748270090504,2.10780172,2544.2,2544.1,0.04677866]
[1748270090673,1.55801806,2543.5,2543.4,0.6261295]
[1748270090872,9.88501806,2543.5,2543.4,0.6261295]
[1748270091702,0.78634898,2543.4,2543.3,0.005]
[1748270093390,1.57644898,2543.4,2543.3,0.005]
[1748270094807,2.12644898,2543.4,2543.3,0.005]
[1748270095004,3.32905492,2543.4,2543.3,0.005]
[1748270095306,2.77905492,2543.4,2543.3,0.005]
[1748270095602,11.10905492,2543.4,2543.3,0.005]
[1748270095814,0.78634898,2543.4,2543.3,0.005]
[1748270095983,3.929,2543.7,2543.3,0.005]
[1748270096301,0.78633241,2543.5,2543.3,0.005]
[1748270096599,4.7152718,2543.7,2543.3,0.005]
[1748270096800,0.78622533,2543.8,2543.3,8.005]
[1748270096976,0.78631887,2543.5,2543.3,0.005]
[1748270098213,0.78633337,2543.5,2543.3,0.005]
[1748270098418,4.71529255,2543.6,2543.3,0.005]
[1748270098777,0.78626908,2543.7,2543.4,0.8239]
[1748270099716,4.71526908,2543.7,2543.4,0.8239]
[1748270099916,0.78631806,2543.5,2543.4,0.8239]
[1748270100222,0.78631806,2543.5,2543.3,0.005]
[1748270100521,0.78634898,2543.4,2543.3,0.005]
[1748270100921,1.02464568,2543.4,2543.3,0.005]
[1748270101080,2.33444568,2543.4,2543.3,0.005]
[1748270101881,1.78444568,2543.4,2543.3,0.005]
[1748270102136,4.71534898,2543.4,2543.3,0.005]
[1748270102921,0.78634898,2543.4,2543.3,0.005]
[1748270103106,4.71534898,2543.4,2543.3,0.005]
[1748270103922,0.78634898,2543.4,2543.3,0.005]
[1748270104123,4.71634898,2543.4,2543.3,0.005]
[1748270104498,0.78641082,2543.2,2543.1,0.1]
[1748270105025,4.71639447,2543.3,2543.1,0.1]
[1748270105524,0.78641082,2543.2,2543.1,0.1]
[1748270107691,4.71639582,2543.3,2543.1,0.1]
[1748270108191,0.78641082,2543.2,2543.1,0.1]
[1748270109126,4.716398,2543.3,2543.1,0.1]
[1748270109329,0.78641082,2543.2,2543.1,0.1]
[1748270109508,4.71641082,2543.2,2543.1,0.1]
[1748270112342,6.0346917,2543.2,2543.1,0.1]
[1748270113307,2.1046917,2543.2,2543.1,0.1]
[1748270113541,4.71641082,2543.2,2543.1,0.1]
[1748270115829,0.78641082,2543.2,2543.1,0.1]
[1748270116012,4.71641082,2543.2,2543.1,0.1]
[1748270121255,2.12871082,2543.2,2543.1,0.1]
[1748270121448,10.45271082,2543.2,2543.1,0.1]
[1748270121652,11.8124217,2543.2,2543.1,0.1]
[1748270123118,11.2624217,2543.2,2543.1,0.1]
[1748270123623,11.8124217,2543.2,2543.1,0.1]
[1748270124660,3.4884217,2543.2,2543.1,0.1]
[1748270124831,0.78641082,2543.2,2543.1,0.1]
[1748270126221,0.78656546,2542.7,2542.6,0.8157]
[1748270126453,0.78665827,2542.4,2542.3,0.8294]
[1748270127673,0.78672016,2542.2,2542.1,0.105]
[1748270128773,0.7704,2542.7,2542.1,0.9222]
[1748270128969,3.931,2542.6,2542.2,3.93360081]
[1748270129269,0.78665827,2542.4,2542.3,1.44905569]
[1748270129567,0.78672016,2542.2,2542.1,0.9222]
[1748270129768,3.931,2542.7,2542.1,0.9222]
[1748270129769,1.73638667,2543.2,2542.1,0.9222]
[1748270129940,0.7704,2543.2,2542.4,0.8172]
[1748270130150,0.7865514,2542.8,2542.4,0.8172]
[1748270130329,0.7704,2543.2,2542.4,0.8172]
[1748270130529,0.78648522,2543.0,2542.4,1.69892]
[1748270130846,0.78650829,2542.9,2542.5,0.8187]
[1748270131060,0.786528,2542.9,2542.5,0.8187]
[1748270131299,1.57575213,2543.8,2542.7,3.93274371]
[1748270131574,0.78641777,2543.2,2542.8,0.8023]
[1748270131777,0.78641777,2543.2,2542.9,0.49521035]
[1748270132086,0.7895,2543.8,2543.2,0.7665]
[1748270132087,0.78634064,2543.5,2543.2,0.7665]
[1748270132381,3.931,2543.8,2543.2,0.7665]
[1748270132382,1.94257418,2543.6,2543.2,0.7665]
[1748270132730,1.94257418,2543.6,2543.3,8.0]
[1748270132931,1.94257418,2543.6,2543.2,0.7665]
[1748270133145,1.94257418,2543.6,2543.3,9.26986894]
[1748270133444,1.94257418,2543.6,2543.3,5.2017673]
[1748270133639,1.94257418,2543.6,2543.4,0.788]
[1748270134042,1.94257418,2543.6,2543.4,4.71966198]
[1748270134231,1.94257418,2543.6,2543.4,0.788]
[1748270134431,1.94257418,2543.6,2543.4,2.7572625]
[1748270134877,0.78631806,2543.5,2543.4,0.788]
[1748270135118,0.78636585,2543.4,2543.1,0.7634]
[1748270135394,0.78633951,2543.5,2543.1,0.7634]
[1748270135559,0.78624518,2543.8,2543.3,8.0]
[1748270135764,3.931,2543.9,2543.4,0.8161]
[1748270135995,0.7862255,2543.8,2543.4,2.83491267]
[1748270136302,3.931,2543.9,2543.4,2.83491267]
[1748270136468,4.71721308,2543.9,2543.4,6.76660383]
[1748270136664,0.78613459,2544.1,2543.6,3.93134641]
[1748270136864,0.78624203,2543.8,2543.5,8.0]
[1748270137176,0.78620145,2543.9,2543.5,8.0]
[1748270137376,0.78620145,2543.9,2543.5,9.47666081]
[1748270137584,0.8288,2543.9,2543.0,0.7626]
[1748270137804,0.8288,2543.9,2543.1,8.0]
[1748270137957,0.8288,2544.2,2543.3,3.93181655]
[1748270138153,0.78616352,2544.0,2543.2,0.7626]
[1748270138384,3.93,2543.9,2543.3,4.80815373]
[1748270138687,0.7862563,2543.7,2543.3,8.87626]
[1748270139056,0.78632327,2543.5,2543.3,0.87626]
[1748270139247,0.78627183,2543.7,2543.2,0.7626]
[1748270139466,0.78627183,2543.7,2543.3,8.0]
[1748270139675,0.78617582,2544.0,2543.4,0.7623]
[1748270139866,0.78619876,2543.9,2543.4,8.7623]
[1748270140177,0.78619876,2543.9,2543.5,9.83970561]
[1748270140357,0.78623488,2543.8,2543.5,9.83970561]
[1748270140557,0.78620656,2543.9,2543.5,9.83970561]
[1748270140858,3.93,2544.1,2543.5,9.83970561]
[1748270141105,0.78628715,2543.6,2543.4,0.7623]
[1748270141265,0.78627423,2543.7,2543.4,0.7623]
[1748270141463,0.78621865,2543.9,2543.4,0.7623]
[1748270141781,0.78617679,2544.0,2543.6,8.0]
[1748270142569,4.71614026,2544.1,2543.6,8.0]
[1748270142570,0.78619949,2543.9,2543.6,8.0]
[1748270142773,0.78617744,2544.0,2543.6,8.0]
[1748270143007,0.78619552,2543.9,2543.6,8.0]
[1748270143407,0.78622846,2543.8,2543.5,8.0]
[1748270143614,0.78620468,2543.9,2543.5,8.0]
[1748270143914,0.78620468,2543.9,2543.5,10.62606366]
[1748270144067,3.93,2544.2,2543.6,10.3849561]
[1748270144406,3.93,2544.2,2543.7,8.0]
[1748270144726,0.78605276,2544.4,2544.0,0.8052]
[1748270144871,0.78610763,2544.2,2544.0,0.8052]
[1748270145511,4.7160863,2544.3,2544.0,0.8052]
[1748270145707,0.7860863,2544.3,2544.0,0.8052]
[1748270145918,3.93,2544.4,2544.0,0.8052]
[1748270146074,0.78613254,2544.2,2544.0,0.8052]
[1748270146475,0.78621533,2543.9,2543.7,0.8052]
[1748270146702,0.78622533,2543.8,2543.7,0.8052]
[1748270147098,0.78605306,2544.4,2543.9,3.93087444]